[Event "Titled Tuesday Blitz May 23 Late 2023"]
[White "Mazurkiewicz, Michal"]
[Black "Torres Dominguez, David"]
[WhiteFideId "1124943"]
[BlackFideId "2220857"]
[WhiteElo "2054"]
[BlackElo "1999"]
[Result "1-0"]
[Round "09"]
[TimeControl "180+2"]
[Date "2023.05.23"]
[WhiteClock "0:00:18"]
[BlackClock "0:00:14"]

1. e4 {[%clk 0:03:00]}  e5 {[%clk 0:03:00]} 2. Nf3 {[%clk 0:03:00]}  Nc6 {[%clk 0:03:00]} 3. Bb5 {[%clk 0:03:00]}  Nge7 {[%clk 0:03:01]} 4. c3 {[%clk 0:03:00]}  g6 {[%clk 0:03:01]} 5. d4 {[%clk 0:03:00]}  Bg7 {[%clk 0:03:01]} 6. d5 {[%clk 0:03:00]}  a6 {[%clk 0:03:01]} 7. Bd3 {[%clk 0:02:51]}  Na7 {[%clk 0:03:01]} 8. c4 {[%clk 0:02:51]}  d6 {[%clk 0:03:01]} 9. Nc3 {[%clk 0:02:50]}  O-O {[%clk 0:03:00]} 10. O-O {[%clk 0:02:50]}  Bd7 {[%clk 0:03:00]} 11. Be3 {[%clk 0:02:49]}  b5 {[%clk 0:02:58]} 12. Nd2 {[%clk 0:02:47]}  b4 {[%clk 0:02:58]} 13. Ne2 {[%clk 0:02:45]}  c5 {[%clk 0:02:54]} 14. dxc6 {[%clk 0:02:36]}  Naxc6 {[%clk 0:02:55]} 15. c5 {[%clk 0:02:36]}  d5 {[%clk 0:02:49]} 16. exd5 {[%clk 0:02:26]}  Nxd5 {[%clk 0:02:50]} 17. Nc4 {[%clk 0:02:21]}  Nxe3 {[%clk 0:02:45]} 18. Nxe3 {[%clk 0:02:22]}  Be6 {[%clk 0:02:19]} 19. Be4 {[%clk 0:02:20]}  Qc7 {[%clk 0:02:04]} 20. Qd6 {[%clk 0:02:18]}  Rac8 {[%clk 0:02:01]} 21. Nd5 {[%clk 0:02:17]}  Bxd5 {[%clk 0:02:01]} 22. Bxd5 {[%clk 0:02:17]}  Rfd8 {[%clk 0:01:54]} 23. Qxc7 {[%clk 0:02:04]}  Rxc7 {[%clk 0:01:54]} 24. Rfd1 {[%clk 0:02:03]}  Rcd7 {[%clk 0:01:54]} 25. Bb3 {[%clk 0:01:58]}  Rxd1+ {[%clk 0:01:51]} 26. Rxd1 {[%clk 0:01:57]}  e4 {[%clk 0:01:48]} 27. Rxd8+ {[%clk 0:01:54]}  Nxd8 {[%clk 0:01:48]} 28. Bd5 {[%clk 0:01:54]}  Bxb2 {[%clk 0:01:46]} 29. Bxe4 {[%clk 0:01:53]}  Ne6 {[%clk 0:01:38]} 30. c6 {[%clk 0:01:53]}  Be5 {[%clk 0:01:29]} 31. g3 {[%clk 0:01:36]}  a5 {[%clk 0:01:28]} 32. f4 {[%clk 0:01:36]}  Bd6 {[%clk 0:01:27]} 33. Kf2 {[%clk 0:01:36]}  a4 {[%clk 0:01:26]} 34. Bc2 {[%clk 0:01:33]}  Nc5 {[%clk 0:01:24]} 35. Nd4 {[%clk 0:01:34]}  Ne6 {[%clk 0:01:04]} 36. Nb5 {[%clk 0:01:23]}  Bb8 {[%clk 0:00:41]} 37. Bxa4 {[%clk 0:01:23]}  Nc7 {[%clk 0:00:41]} 38. Ke3 {[%clk 0:00:57]}  Nd5+ {[%clk 0:00:40]} 39. Kd4 {[%clk 0:00:55]}  Nc7 {[%clk 0:00:39]} 40. Nxc7 {[%clk 0:00:47]}  Bxc7 {[%clk 0:00:39]} 41. Kc4 {[%clk 0:00:47]}  Kf8 {[%clk 0:00:39]} 42. Kxb4 {[%clk 0:00:45]}  Ke7 {[%clk 0:00:40]} 43. Bb3 {[%clk 0:00:45]}  f6 {[%clk 0:00:39]} 44. Bc2 {[%clk 0:00:32]}  Kd6 {[%clk 0:00:34]} 45. Kb5 {[%clk 0:00:32]}  Bd8 {[%clk 0:00:32]} 46. a4 {[%clk 0:00:23]}  Kc7 {[%clk 0:00:32]} 47. a5 {[%clk 0:00:24]}  Kb8 {[%clk 0:00:31]} 48. a6 {[%clk 0:00:24]}  Ka7 {[%clk 0:00:28]} 49. Bd3 {[%clk 0:00:22]}  Bc7 {[%clk 0:00:26]} 50. Kc5 {[%clk 0:00:22]}  Kb8 {[%clk 0:00:25]} 51. Kd5 {[%clk 0:00:22]}  Ka7 {[%clk 0:00:22]} 52. Ke6 {[%clk 0:00:22]}  g5 {[%clk 0:00:21]} 53. f5 {[%clk 0:00:20]}  Be5 {[%clk 0:00:20]} 54. Kd7 {[%clk 0:00:19]}  Kb8 {[%clk 0:00:17]} 55. c7+ {[%clk 0:00:18]}  Bxc7 {[%clk 0:00:16]} 56. a7+ {[%clk 0:00:18]}  Kb7 {[%clk 0:00:16]} 57. a8=Q+ {[%clk 0:00:17]}  Kxa8 {[%clk 0:00:14]} 58. Kxc7 {[%clk 0:00:18]} 1-0


[Site "https://www.chess.com"]

[Event "Titled Tuesday Blitz May 23 Late 2023"]
[White "Kim, Sergey"]
[Black "Zampronha, Wladimir Camilo"]
[WhiteFideId "13700570"]
[BlackFideId "2103087"]
[WhiteElo "2470"]
[BlackElo "2176"]
[Result "1-0"]
[Round "09"]
[TimeControl "180+2"]
[Date "2023.05.23"]
[WhiteClock "0:01:18"]
[BlackClock "0:00:11"]

1. d4 {[%clk 0:03:00]}  Nf6 {[%clk 0:02:55]} 2. c4 {[%clk 0:03:00]}  e6 {[%clk 0:02:56]} 3. Nc3 {[%clk 0:03:01]}  Bb4 {[%clk 0:02:55]} 4. Qc2 {[%clk 0:03:01]}  d5 {[%clk 0:02:54]} 5. a3 {[%clk 0:03:01]}  Bxc3+ {[%clk 0:02:53]} 6. Qxc3 {[%clk 0:03:01]}  Ne4 {[%clk 0:02:44]} 7. Qc2 {[%clk 0:03:01]}  O-O {[%clk 0:02:42]} 8. Nf3 {[%clk 0:03:01]}  Nd7 {[%clk 0:02:40]} 9. g3 {[%clk 0:03:00]}  c5 {[%clk 0:02:31]} 10. dxc5 {[%clk 0:02:59]}  Ndxc5 {[%clk 0:02:29]} 11. b4 {[%clk 0:02:57]}  Nd7 {[%clk 0:02:23]} 12. Bg2 {[%clk 0:02:56]}  Ndf6 {[%clk 0:02:19]} 13. O-O {[%clk 0:02:53]}  dxc4 {[%clk 0:02:18]} 14. Qxc4 {[%clk 0:02:51]}  Qd5 {[%clk 0:02:06]} 15. Nd2 {[%clk 0:02:34]}  Qxc4 {[%clk 0:02:02]} 16. Nxc4 {[%clk 0:02:34]}  Bd7 {[%clk 0:01:57]} 17. Ne5 {[%clk 0:02:18]}  Nc3 {[%clk 0:01:27]} 18. Re1 {[%clk 0:02:14]}  Ncd5 {[%clk 0:01:22]} 19. Nxd7 {[%clk 0:02:00]}  Nxd7 {[%clk 0:01:21]} 20. Bxd5 {[%clk 0:02:00]}  exd5 {[%clk 0:01:20]} 21. Be3 {[%clk 0:02:00]}  Nb6 {[%clk 0:01:15]} 22. Red1 {[%clk 0:01:55]}  Rfd8 {[%clk 0:01:13]} 23. a4 {[%clk 0:01:48]}  Nc4 {[%clk 0:01:12]} 24. Bd4 {[%clk 0:01:47]}  a6 {[%clk 0:01:11]} 25. a5 {[%clk 0:01:43]}  f6 {[%clk 0:01:09]} 26. Rac1 {[%clk 0:01:40]}  Rac8 {[%clk 0:01:03]} 27. Kg2 {[%clk 0:01:37]}  Kf7 {[%clk 0:01:03]} 28. h4 {[%clk 0:01:35]}  Ke6 {[%clk 0:01:01]} 29. Rc3 {[%clk 0:01:34]}  Nd6 {[%clk 0:00:56]} 30. Bc5 {[%clk 0:01:26]}  Ne4 {[%clk 0:00:53]} 31. Re3 {[%clk 0:01:25]}  Kf7 {[%clk 0:00:52]} 32. Bb6 {[%clk 0:01:21]}  Rd6 {[%clk 0:00:28]} 33. Rxe4 {[%clk 0:01:18]}  Rxb6 {[%clk 0:00:27]} 34. Rxd5 {[%clk 0:01:18]}  Rd6 {[%clk 0:00:11]} 35. Rxd6 {[%clk 0:01:18]} 1-0


[Site "https://www.chess.com"]

[Event "Titled Tuesday Blitz May 23 Late 2023"]
[White "Kostiukov, Alexandr"]
[Black "Kaplan, Avi Harrison"]
[WhiteFideId "14108100"]
[BlackFideId "30934559"]
[WhiteElo "2202"]
[BlackElo "1983"]
[Result "0-1"]
[Round "09"]
[TimeControl "180+2"]
[Date "2023.05.23"]
[WhiteClock "0:00:03"]
[BlackClock "0:02:04"]

1. g3 {[%clk 0:03:00]}  h5 {[%clk 0:02:57]} 2. Nf3 {[%clk 0:03:00]}  a5 {[%clk 0:02:56]} 3. e4 {[%clk 0:02:59]}  e6 {[%clk 0:02:55]} 4. d4 {[%clk 0:02:59]}  c5 {[%clk 0:02:54]} 5. d5 {[%clk 0:02:56]}  exd5 {[%clk 0:02:52]} 6. exd5 {[%clk 0:02:56]}  Nf6 {[%clk 0:02:52]} 7. d6 {[%clk 0:02:42]}  Qb6 {[%clk 0:02:52]} 8. Qe2+ {[%clk 0:02:30]}  Kd8 {[%clk 0:02:52]} 9. Ng5 {[%clk 0:02:25]}  Bxd6 {[%clk 0:02:46]} 10. Nxf7+ {[%clk 0:02:25]}  Kc7 {[%clk 0:02:47]} 11. Nxh8 {[%clk 0:02:22]}  Nc6 {[%clk 0:02:48]} 12. Nf7 {[%clk 0:01:58]}  Nd4 {[%clk 0:02:44]} 13. Qd1 {[%clk 0:01:51]}  Qc6 {[%clk 0:02:38]} 14. f3 {[%clk 0:00:54]}  Nxf3+ {[%clk 0:02:34]} 15. Ke2 {[%clk 0:00:36]}  Nd4+ {[%clk 0:02:27]} 16. Kf2 {[%clk 0:00:27]}  Ng4+ {[%clk 0:02:20]} 17. Ke1 {[%clk 0:00:16]}  Qe4+ {[%clk 0:02:17]} 18. Be2 {[%clk 0:00:10]}  Qxh1+ {[%clk 0:02:05]} 19. Kd2 {[%clk 0:00:10]}  Qe4 {[%clk 0:02:05]} 20. Nxd6 {[%clk 0:00:04]}  Qe3+ {[%clk 0:02:05]} 21. Ke1 {[%clk 0:00:05]}  Nf3+ {[%clk 0:02:06]} 22. Kf1 {[%clk 0:00:03]}  Qf2# {[%clk 0:02:04]} 0-1


[Site "https://www.chess.com"]

[Event "Titled Tuesday Blitz May 23 Late 2023"]
[White "merinasian"]
[Black "KVAIDAN"]
[WhiteElo "2439"]
[BlackElo "2292"]
[Result "1-0"]
[Round "09"]
[TimeControl "180+2"]
[Date "2023.05.23"]
[WhiteClock "0:00:19"]
[BlackClock "0:00:55"]

1. d4 {[%clk 0:03:00]}  e6 {[%clk 0:02:59]} 2. Nf3 {[%clk 0:02:59]}  f5 {[%clk 0:02:59]} 3. g3 {[%clk 0:02:57]}  Nf6 {[%clk 0:02:58]} 4. Bg2 {[%clk 0:02:55]}  Be7 {[%clk 0:02:59]} 5. O-O {[%clk 0:02:50]}  O-O {[%clk 0:03:00]} 6. c4 {[%clk 0:02:31]}  d6 {[%clk 0:02:55]} 7. Nc3 {[%clk 0:02:26]}  a5 {[%clk 0:02:52]} 8. Nd2 {[%clk 0:02:11]}  e5 {[%clk 0:02:50]} 9. d5 {[%clk 0:02:08]}  Qe8 {[%clk 0:02:45]} 10. f4 {[%clk 0:02:03]}  e4 {[%clk 0:02:40]} 11. e3 {[%clk 0:02:02]}  Ng4 {[%clk 0:02:37]} 12. Nb3 {[%clk 0:01:58]}  Bf6 {[%clk 0:02:35]} 13. h3 {[%clk 0:01:57]}  Bxc3 {[%clk 0:02:32]} 14. bxc3 {[%clk 0:01:56]}  Nf6 {[%clk 0:02:31]} 15. c5 {[%clk 0:01:54]}  Qg6 {[%clk 0:02:29]} 16. Kh2 {[%clk 0:01:52]}  Nh5 {[%clk 0:02:28]} 17. Qe1 {[%clk 0:01:51]}  a4 {[%clk 0:02:28]} 18. Nd2 {[%clk 0:01:37]}  dxc5 {[%clk 0:02:28]} 19. Nc4 {[%clk 0:01:33]}  Nd7 {[%clk 0:02:26]} 20. Nd2 {[%clk 0:01:17]}  b5 {[%clk 0:02:24]} 21. c4 {[%clk 0:01:17]}  bxc4 {[%clk 0:02:21]} 22. Nxc4 {[%clk 0:01:16]}  Ba6 {[%clk 0:02:22]} 23. Ne5 {[%clk 0:01:03]}  Nxe5 {[%clk 0:02:21]} 24. fxe5 {[%clk 0:01:03]}  Bxf1 {[%clk 0:02:15]} 25. Bxf1 {[%clk 0:01:02]}  Rae8 {[%clk 0:01:50]} 26. Bb2 {[%clk 0:01:01]}  a3 {[%clk 0:01:48]} 27. Bc3 {[%clk 0:01:01]}  Rd8 {[%clk 0:01:43]} 28. Rd1 {[%clk 0:00:59]}  Kh8 {[%clk 0:01:42]} 29. Be2 {[%clk 0:00:53]}  c6 {[%clk 0:01:31]} 30. d6 {[%clk 0:00:50]}  Qf7 {[%clk 0:01:31]} 31. Bxh5 {[%clk 0:00:48]}  Qxh5 {[%clk 0:01:31]} 32. e6 {[%clk 0:00:48]}  Ra8 {[%clk 0:01:21]} 33. e7 {[%clk 0:00:45]}  Rg8 {[%clk 0:01:20]} 34. d7 {[%clk 0:00:43]}  Qg5 {[%clk 0:01:20]} 35. d8=Q {[%clk 0:00:37]}  Raxd8 {[%clk 0:01:20]} 36. exd8=Q {[%clk 0:00:37]}  Rxd8 {[%clk 0:01:18]} 37. Rxd8+ {[%clk 0:00:36]}  Qxd8 {[%clk 0:01:19]} 38. Qd2 {[%clk 0:00:34]}  Qg8 {[%clk 0:01:15]} 39. Be5 {[%clk 0:00:32]}  Qd5 {[%clk 0:01:08]} 40. Qxd5 {[%clk 0:00:28]}  cxd5 {[%clk 0:01:08]} 41. Bd6 {[%clk 0:00:28]}  d4 {[%clk 0:01:06]} 42. Bxc5 {[%clk 0:00:28]}  d3 {[%clk 0:01:05]} 43. Bb4 {[%clk 0:00:27]}  Kg8 {[%clk 0:01:05]} 44. Kg1 {[%clk 0:00:28]}  Kf7 {[%clk 0:01:06]} 45. Kf2 {[%clk 0:00:29]}  Ke6 {[%clk 0:01:06]} 46. Ke1 {[%clk 0:00:29]}  Kd5 {[%clk 0:01:06]} 47. Bxa3 {[%clk 0:00:29]}  Kc4 {[%clk 0:01:07]} 48. Bb2 {[%clk 0:00:29]}  g5 {[%clk 0:01:06]} 49. Kd2 {[%clk 0:00:29]}  h5 {[%clk 0:01:07]} 50. Bf6 {[%clk 0:00:28]}  h4 {[%clk 0:01:06]} 51. gxh4 {[%clk 0:00:28]}  f4 {[%clk 0:01:01]} 52. hxg5 {[%clk 0:00:22]}  f3 {[%clk 0:01:02]} 53. Ke1 {[%clk 0:00:20]}  Kd5 {[%clk 0:00:59]} 54. Bc3 {[%clk 0:00:19]}  Kc4 {[%clk 0:00:58]} 55. Bd2 {[%clk 0:00:20]}  Kd5 {[%clk 0:00:58]} 56. h4 {[%clk 0:00:20]}  Ke5 {[%clk 0:00:58]} 57. a4 {[%clk 0:00:20]}  Kf5 {[%clk 0:00:58]} 58. a5 {[%clk 0:00:21]}  Kg4 {[%clk 0:00:59]} 59. a6 {[%clk 0:00:21]}  Kg3 {[%clk 0:01:00]} 60. Kf1 {[%clk 0:00:19]}  Kxh4 {[%clk 0:00:55]} 61. a7 {[%clk 0:00:19]} 1-0


[Site "https://www.chess.com"]

[Event "Titled Tuesday Blitz May 23 Late 2023"]
[White "Wang, Alexander J"]
[Black "Pires, Marcos Vinicius Torsani"]
[WhiteFideId "30955270"]
[BlackFideId "2118939"]
[WhiteElo "2280"]
[BlackElo "2273"]
[Result "0-1"]
[Round "09"]
[TimeControl "180+2"]
[Date "2023.05.23"]
[WhiteClock "0:01:07"]
[BlackClock "0:00:30"]

1. e4 {[%clk 0:02:57]}  c5 {[%clk 0:02:49]} 2. Nf3 {[%clk 0:02:54]}  g6 {[%clk 0:02:48]} 3. d4 {[%clk 0:02:55]}  cxd4 {[%clk 0:02:48]} 4. Nxd4 {[%clk 0:02:56]}  Nc6 {[%clk 0:02:47]} 5. Nc3 {[%clk 0:02:56]}  Bg7 {[%clk 0:02:47]} 6. Be3 {[%clk 0:02:57]}  Nf6 {[%clk 0:02:47]} 7. Bc4 {[%clk 0:02:57]}  O-O {[%clk 0:02:47]} 8. Bb3 {[%clk 0:02:57]}  d6 {[%clk 0:02:46]} 9. f3 {[%clk 0:02:58]}  a5 {[%clk 0:02:31]} 10. a4 {[%clk 0:02:57]}  Nb4 {[%clk 0:02:30]} 11. Qd2 {[%clk 0:02:54]}  d5 {[%clk 0:02:18]} 12. e5 {[%clk 0:02:48]}  Nd7 {[%clk 0:02:00]} 13. f4 {[%clk 0:02:47]}  Nb6 {[%clk 0:01:44]} 14. O-O-O {[%clk 0:02:32]}  Nc4 {[%clk 0:01:35]} 15. Bxc4 {[%clk 0:02:31]}  dxc4 {[%clk 0:01:36]} 16. Ndb5 {[%clk 0:02:30]}  Bg4 {[%clk 0:01:24]} 17. Qxd8 {[%clk 0:02:05]}  Raxd8 {[%clk 0:01:18]} 18. Rxd8 {[%clk 0:02:05]}  Rxd8 {[%clk 0:01:17]} 19. h3 {[%clk 0:02:04]}  Bf5 {[%clk 0:01:14]} 20. Rd1 {[%clk 0:02:01]}  Rxd1+ {[%clk 0:01:11]} 21. Nxd1 {[%clk 0:02:01]}  Nxc2 {[%clk 0:01:02]} 22. g4 {[%clk 0:01:56]}  Nxe3 {[%clk 0:01:01]} 23. Nxe3 {[%clk 0:01:57]}  Be6 {[%clk 0:00:59]} 24. Nd4 {[%clk 0:01:52]}  Bd7 {[%clk 0:00:55]} 25. Nb5 {[%clk 0:01:48]}  g5 {[%clk 0:00:47]} 26. f5 {[%clk 0:01:19]}  Bxe5 {[%clk 0:00:40]} 27. Nxc4 {[%clk 0:01:19]}  Bf4+ {[%clk 0:00:41]} 28. Kb1 {[%clk 0:01:16]}  Bc6 {[%clk 0:00:31]} 29. Nd4 {[%clk 0:01:07]}  Bg2 {[%clk 0:00:30]} 0-1


[Site "https://www.chess.com"]

[Event "Titled Tuesday Blitz May 23 Late 2023"]
[White "Mikhalsky, Vladimir"]
[Black "Clawitter, Craig"]
[WhiteFideId "14144352"]
[BlackFideId "2023105"]
[WhiteElo "2236"]
[BlackElo "2237"]
[Result "0-1"]
[Round "09"]
[TimeControl "180+2"]
[Date "2023.05.23"]
[WhiteClock "0:00:11"]
[BlackClock "0:00:12"]

1. d4 {[%clk 0:02:51]}  e6 {[%clk 0:03:00]} 2. c4 {[%clk 0:02:48]}  Nf6 {[%clk 0:03:00]} 3. f3 {[%clk 0:02:42]}  c5 {[%clk 0:02:54]} 4. d5 {[%clk 0:02:41]}  exd5 {[%clk 0:02:53]} 5. cxd5 {[%clk 0:02:41]}  d6 {[%clk 0:02:54]} 6. e4 {[%clk 0:02:40]}  g6 {[%clk 0:02:54]} 7. b3 {[%clk 0:02:37]}  Bg7 {[%clk 0:02:54]} 8. Bb2 {[%clk 0:02:37]}  O-O {[%clk 0:02:48]} 9. Ne2 {[%clk 0:02:29]}  b5 {[%clk 0:02:33]} 10. Nd2 {[%clk 0:02:24]}  Re8 {[%clk 0:02:21]} 11. Qc2 {[%clk 0:02:18]}  Nbd7 {[%clk 0:02:16]} 12. Nc3 {[%clk 0:02:18]}  a6 {[%clk 0:02:13]} 13. a4 {[%clk 0:02:16]}  b4 {[%clk 0:02:05]} 14. Nd1 {[%clk 0:02:15]}  Nxd5 {[%clk 0:02:01]} 15. Bxg7 {[%clk 0:02:13]}  Kxg7 {[%clk 0:02:02]} 16. Nc4 {[%clk 0:02:06]}  Qh4+ {[%clk 0:01:39]} 17. g3 {[%clk 0:02:02]}  Qf6 {[%clk 0:01:38]} 18. Qb2 {[%clk 0:02:00]}  Nc3 {[%clk 0:01:29]} 19. Kf2 {[%clk 0:01:04]}  Nxd1+ {[%clk 0:01:24]} 20. Rxd1 {[%clk 0:01:03]}  Ne5 {[%clk 0:01:18]} 21. Nxe5 {[%clk 0:00:56]}  Rxe5 {[%clk 0:01:18]} 22. Bc4 {[%clk 0:00:52]}  Bb7 {[%clk 0:01:10]} 23. f4 {[%clk 0:00:50]}  Bxe4 {[%clk 0:00:27]} 24. Rhe1 {[%clk 0:00:44]}  Rae8 {[%clk 0:00:20]} 25. Kg1 {[%clk 0:00:40]}  R5e6 {[%clk 0:00:20]} 26. Qxf6+ {[%clk 0:00:38]}  Rxf6 {[%clk 0:00:20]} 27. Bd5 {[%clk 0:00:34]}  Bxd5 {[%clk 0:00:16]} 28. Rxe8 {[%clk 0:00:33]}  Bxb3 {[%clk 0:00:16]} 29. Rde1 {[%clk 0:00:29]}  Bxa4 {[%clk 0:00:14]} 30. Ra8 {[%clk 0:00:29]}  Bb5 {[%clk 0:00:14]} 31. Rd8 {[%clk 0:00:29]}  c4 {[%clk 0:00:13]} 32. Rd1 {[%clk 0:00:28]}  c3 {[%clk 0:00:11]} 33. Rc8 {[%clk 0:00:22]}  Re6 {[%clk 0:00:10]} 34. Kf2 {[%clk 0:00:22]}  Re2+ {[%clk 0:00:10]} 35. Kf3 {[%clk 0:00:22]}  c2 {[%clk 0:00:10]} 36. Rxd6 {[%clk 0:00:20]}  b3 {[%clk 0:00:09]} 37. Rb6 {[%clk 0:00:15]}  b2 {[%clk 0:00:08]} 38. Rxb5 {[%clk 0:00:13]}  axb5 {[%clk 0:00:09]} 39. Kxe2 {[%clk 0:00:13]}  c1=Q {[%clk 0:00:08]} 40. Rd8 {[%clk 0:00:12]}  Qc2+ {[%clk 0:00:08]} 41. Rd2 {[%clk 0:00:11]}  b1=Q {[%clk 0:00:09]} 42. Ke3 {[%clk 0:00:11]}  Qxd2+ {[%clk 0:00:09]} 43. Kxd2 {[%clk 0:00:11]}  b4 {[%clk 0:00:09]} 44. Ke3 {[%clk 0:00:11]}  b3 {[%clk 0:00:10]} 45. Kd4 {[%clk 0:00:11]}  Qc2 {[%clk 0:00:11]} 46. Ke5 {[%clk 0:00:11]}  b2 {[%clk 0:00:11]} 47. Kd6 {[%clk 0:00:11]}  b1=Q {[%clk 0:00:12]} 48. Ke7 {[%clk 0:00:11]}  Qb7+ {[%clk 0:00:12]} 49. Ke8 {[%clk 0:00:11]}  Qcc8# {[%clk 0:00:12]} 0-1


[Site "https://www.chess.com"]

[Event "Titled Tuesday Blitz May 23 Late 2023"]
[White "Vaglio Munoz, Jaime"]
[Black "Almedina Ortiz, Edgardo J."]
[WhiteFideId "6500145"]
[BlackFideId "3100197"]
[WhiteElo "2199"]
[BlackElo "2217"]
[Result "0-1"]
[Round "09"]
[TimeControl "180+2"]
[Date "2023.05.23"]
[WhiteClock "0:01:21"]
[BlackClock "0:00:17"]

1. e4 {[%clk 0:02:52]}  c5 {[%clk 0:03:00]} 2. Nf3 {[%clk 0:02:49]}  Nc6 {[%clk 0:02:59]} 3. d4 {[%clk 0:02:48]}  cxd4 {[%clk 0:03:00]} 4. Nxd4 {[%clk 0:02:48]}  g6 {[%clk 0:03:00]} 5. c4 {[%clk 0:02:45]}  Bg7 {[%clk 0:03:00]} 6. Nc2 {[%clk 0:02:44]}  Nf6 {[%clk 0:02:59]} 7. Nc3 {[%clk 0:02:43]}  O-O {[%clk 0:02:59]} 8. Be3 {[%clk 0:02:40]}  d6 {[%clk 0:02:59]} 9. Be2 {[%clk 0:02:36]}  Be6 {[%clk 0:02:44]} 10. O-O {[%clk 0:02:35]}  Rc8 {[%clk 0:02:45]} 11. Rc1 {[%clk 0:02:33]}  a6 {[%clk 0:02:34]} 12. b3 {[%clk 0:02:32]}  Qa5 {[%clk 0:02:09]} 13. Nd5 {[%clk 0:02:17]}  Nxe4 {[%clk 0:01:40]} 14. b4 {[%clk 0:02:14]}  Qxa2 {[%clk 0:01:23]} 15. Nd4 {[%clk 0:02:13]}  Bxd5 {[%clk 0:01:10]} 16. Rc2 {[%clk 0:02:03]}  Qa4 {[%clk 0:00:39]} 17. cxd5 {[%clk 0:02:01]}  Nxd4 {[%clk 0:00:39]} 18. Rxc8 {[%clk 0:02:01]}  Nxe2+ {[%clk 0:00:39]} 19. Qxe2 {[%clk 0:02:00]}  Rxc8 {[%clk 0:00:38]} 20. Qg4 {[%clk 0:01:54]}  Rc4 {[%clk 0:00:32]} 21. Qe2 {[%clk 0:01:38]}  Qc2 {[%clk 0:00:28]} 22. Qg4 {[%clk 0:01:31]}  Nd2 {[%clk 0:00:24]} 23. Qd7 {[%clk 0:01:30]}  Bf8 {[%clk 0:00:17]} 24. Qe8 {[%clk 0:01:27]}  Rc8 {[%clk 0:00:17]} 25. Qd7 {[%clk 0:01:22]}  Nxf1 {[%clk 0:00:16]} 26. Kxf1 {[%clk 0:01:21]}  Qd1# {[%clk 0:00:17]} 0-1


[Site "https://www.chess.com"]

[Event "Titled Tuesday Blitz May 23 Late 2023"]
[White "Bogaudinov, Rushan"]
[Black "Chlpik, Martin"]
[WhiteFideId "4129288"]
[BlackFideId "14923351"]
[WhiteElo "1941"]
[BlackElo "2109"]
[Result "1-0"]
[Round "09"]
[TimeControl "180+2"]
[Date "2023.05.23"]
[WhiteClock "0:00:19"]
[BlackClock "0:00:12"]

1. b3 {[%clk 0:02:08]}  a5 {[%clk 0:02:56]} 2. Bb2 {[%clk 0:02:09]}  a4 {[%clk 0:02:56]} 3. bxa4 {[%clk 0:02:09]}  Rxa4 {[%clk 0:02:52]} 4. e3 {[%clk 0:02:08]}  Ra8 {[%clk 0:02:53]} 5. d4 {[%clk 0:02:08]}  Nc6 {[%clk 0:02:54]} 6. c4 {[%clk 0:02:07]}  Nf6 {[%clk 0:02:53]} 7. d5 {[%clk 0:02:06]}  Na5 {[%clk 0:02:52]} 8. Nc3 {[%clk 0:02:03]}  c6 {[%clk 0:02:51]} 9. e4 {[%clk 0:02:02]}  d6 {[%clk 0:02:50]} 10. Nf3 {[%clk 0:02:02]}  Qb6 {[%clk 0:02:39]} 11. Qc2 {[%clk 0:01:57]}  Qc5 {[%clk 0:02:34]} 12. Bd3 {[%clk 0:01:51]}  Nxc4 {[%clk 0:02:33]} 13. O-O {[%clk 0:01:46]}  Nxb2 {[%clk 0:02:29]} 14. Qxb2 {[%clk 0:01:47]}  Qa3 {[%clk 0:02:27]} 15. Qd2 {[%clk 0:01:41]}  g6 {[%clk 0:02:23]} 16. dxc6 {[%clk 0:01:20]}  bxc6 {[%clk 0:02:22]} 17. e5 {[%clk 0:01:20]}  dxe5 {[%clk 0:02:19]} 18. Nxe5 {[%clk 0:01:20]}  Bg7 {[%clk 0:02:18]} 19. Nxc6 {[%clk 0:01:18]}  Bb7 {[%clk 0:02:14]} 20. Nb5 {[%clk 0:01:07]}  Qa4 {[%clk 0:01:58]} 21. Nc7+ {[%clk 0:01:02]}  Kf8 {[%clk 0:01:59]} 22. Bb5 {[%clk 0:00:58]}  Ne4 {[%clk 0:01:02]} 23. Qd7 {[%clk 0:00:37]}  Qa3 {[%clk 0:00:32]} 24. Nxa8 {[%clk 0:00:30]}  Bxa1 {[%clk 0:00:32]} 25. Qxb7 {[%clk 0:00:25]}  Qc5 {[%clk 0:00:29]} 26. Nb6 {[%clk 0:00:20]}  Bc3 {[%clk 0:00:12]} 27. Nd7+ {[%clk 0:00:19]} 1-0


[Site "https://www.chess.com"]

[Event "Titled Tuesday Blitz May 23 Late 2023"]
[White "Prieto Aranguren, Alain"]
[Black "Sailer, Mike"]
[WhiteFideId "2268906"]
[BlackFideId "2012901"]
[WhiteElo "2209"]
[BlackElo "2109"]
[Result "0-1"]
[Round "09"]
[TimeControl "180+2"]
[Date "2023.05.23"]
[WhiteClock "0:00:25"]
[BlackClock "0:00:10"]

1. e4 {[%clk 0:02:54]}  d5 {[%clk 0:02:59]} 2. e5 {[%clk 0:02:54]}  c5 {[%clk 0:02:59]} 3. c3 {[%clk 0:02:54]}  Nc6 {[%clk 0:02:57]} 4. Nf3 {[%clk 0:02:53]}  Bg4 {[%clk 0:02:57]} 5. Bb5 {[%clk 0:02:52]}  e6 {[%clk 0:02:55]} 6. Qa4 {[%clk 0:02:50]}  Bxf3 {[%clk 0:02:51]} 7. Bxc6+ {[%clk 0:02:49]}  bxc6 {[%clk 0:02:48]} 8. Qxc6+ {[%clk 0:02:49]}  Ke7 {[%clk 0:02:44]} 9. Qxc5+ {[%clk 0:02:47]}  Ke8 {[%clk 0:02:39]} 10. Qc6+ {[%clk 0:02:45]}  Ke7 {[%clk 0:02:38]} 11. gxf3 {[%clk 0:02:35]}  Rc8 {[%clk 0:02:27]} 12. Qa6 {[%clk 0:02:31]}  Qc7 {[%clk 0:02:21]} 13. d4 {[%clk 0:02:26]}  f6 {[%clk 0:02:21]} 14. f4 {[%clk 0:02:22]}  Nh6 {[%clk 0:02:16]} 15. Na3 {[%clk 0:02:20]}  Kf7 {[%clk 0:01:41]} 16. Nb5 {[%clk 0:02:15]}  Qc4 {[%clk 0:01:40]} 17. Nd6+ {[%clk 0:01:59]}  Bxd6 {[%clk 0:01:39]} 18. Qxc4 {[%clk 0:01:49]}  Rxc4 {[%clk 0:01:37]} 19. exd6 {[%clk 0:01:49]}  Nf5 {[%clk 0:01:35]} 20. Be3 {[%clk 0:01:43]}  Nxd6 {[%clk 0:01:33]} 21. O-O {[%clk 0:01:42]}  h6 {[%clk 0:01:12]} 22. Rfc1 {[%clk 0:01:42]}  g5 {[%clk 0:01:11]} 23. a4 {[%clk 0:01:38]}  gxf4 {[%clk 0:01:09]} 24. Bxf4 {[%clk 0:01:37]}  Rg8+ {[%clk 0:01:10]} 25. Kf1 {[%clk 0:01:36]}  Nf5 {[%clk 0:00:50]} 26. b3 {[%clk 0:01:33]}  Rc6 {[%clk 0:00:45]} 27. c4 {[%clk 0:01:24]}  Nxd4 {[%clk 0:00:41]} 28. cxd5 {[%clk 0:01:23]}  Rxc1+ {[%clk 0:00:40]} 29. Rxc1 {[%clk 0:01:22]}  exd5 {[%clk 0:00:38]} 30. Rc7+ {[%clk 0:01:20]}  Ke6 {[%clk 0:00:38]} 31. Rxa7 {[%clk 0:01:15]}  Nxb3 {[%clk 0:00:37]} 32. a5 {[%clk 0:01:15]}  Rg4 {[%clk 0:00:32]} 33. Be3 {[%clk 0:01:10]}  Ra4 {[%clk 0:00:32]} 34. Bb6 {[%clk 0:01:06]}  Nd2+ {[%clk 0:00:26]} 35. Ke2 {[%clk 0:01:04]}  Nc4 {[%clk 0:00:27]} 36. Rh7 {[%clk 0:00:47]}  Nxa5 {[%clk 0:00:21]} 37. Ra7 {[%clk 0:00:40]}  Ra2+ {[%clk 0:00:21]} 38. Kf1 {[%clk 0:00:36]}  Ra1+ {[%clk 0:00:22]} 39. Kg2 {[%clk 0:00:37]}  Nb3 {[%clk 0:00:22]} 40. Rh7 {[%clk 0:00:33]}  Ra6 {[%clk 0:00:16]} 41. Be3 {[%clk 0:00:32]}  d4 {[%clk 0:00:15]} 42. Bxh6 {[%clk 0:00:32]}  d3 {[%clk 0:00:13]} 43. Rh8 {[%clk 0:00:32]}  d2 {[%clk 0:00:12]} 44. Re8+ {[%clk 0:00:32]}  Kd7 {[%clk 0:00:12]} 45. Bxd2 {[%clk 0:00:28]}  Kxe8 {[%clk 0:00:10]} 46. Bc3 {[%clk 0:00:28]}  Kf7 {[%clk 0:00:10]} 47. h4 {[%clk 0:00:28]}  Kg6 {[%clk 0:00:10]} 48. Kg3 {[%clk 0:00:27]}  Nc1 {[%clk 0:00:10]} 49. Kg4 {[%clk 0:00:28]}  Ne2 {[%clk 0:00:11]} 50. h5+ {[%clk 0:00:28]}  Kh7 {[%clk 0:00:10]} 51. Kf5 {[%clk 0:00:25]}  Nxc3 {[%clk 0:00:10]} 0-1


[Site "https://www.chess.com"]